bitfinex/quotes_ETHUSD_20250106
["timestamp","ask_amount","ask_price","bid_price","bid_amount"]
[1736136261163,3.11175435,3667.0,3666.8,0.00180154]
[1736136261362,3.11175435,3667.0,3666.9,0.05776912]
[1736136261726,3.11175435,3667.0,3666.8,0.00180154]
[1736136261933,3.11175435,3667.0,3666.9,0.05776912]
[1736136262190,2.28935435,3667.0,3666.9,0.05776912]
[1736136262385,2.28935435,3667.0,3666.8,3.00625154]
[1736136262533,2.28607291,3667.0,3666.9,0.05802935]
[1736136262867,2.28607291,3667.0,3666.8,3.00625154]
[1736136263170,1.41872674,3667.0,3666.9,0.05802935]
[1736136263468,1.41872674,3667.0,3666.8,5.72382746]
[1736136263788,1.41872674,3667.0,3666.9,3.06236369]
[1736136263985,1.41872674,3667.0,3666.9,6.49446369]
[1736136264353,3.5082437,3667.0,3666.9,6.49446369]
[1736136264556,3.5082437,3667.0,3666.9,9.21203961]
[1736136265384,3.5082437,3667.0,3666.9,6.49446369]
[1736136265678,3.5082437,3667.0,3666.9,41.49446369]
[1736136266085,1.14369914,3667.5,3667.1,2.45421]
[1736136266493,1.14369914,3667.5,3667.2,0.05764033]
[1736136267494,1.41845788,3667.4,3667.2,0.05764033]
[1736136269184,2.08951696,3667.4,3667.2,0.05764033]
[1736136269971,2.08951696,3667.4,3667.0,0.55]
[1736136270174,1.14369914,3667.4,3667.3,0.0576111]
[1736136270395,1.14369914,3667.4,3667.0,0.55]
[1736136270548,1.14369914,3667.4,3667.3,0.0576111]
[1736136270747,1.14369914,3667.4,3667.0,0.55]
[1736136270983,1.14369914,3667.4,3667.3,0.0576111]
[1736136271185,1.14369914,3667.4,3667.0,0.55]
[1736136271497,1.7157693,3667.4,3667.0,0.55]
[1736136271685,1.7157693,3667.4,3667.2,0.55]
[1736136271892,1.7157693,3667.4,3667.3,0.05756544]
[1736136272253,1.7157693,3667.4,3667.0,0.55]
[1736136272454,1.7157693,3667.4,3667.2,0.55]
[1736136272657,4.07996861,3667.4,3667.3,0.05756544]
[1736136272880,4.07996861,3667.4,3667.0,0.55]
[1736136273080,4.07996861,3667.4,3667.2,0.55]
[1736136273323,4.07996861,3667.4,3667.3,0.05756544]
[1736136273616,1.7157693,3667.4,3667.0,0.55]
[1736136273816,1.7157693,3667.4,3667.2,0.55]
[1736136273992,0.8188,3667.3,3667.2,0.55]
[1736136274477,0.8188,3667.3,3667.2,0.60759467]
[1736136274677,0.8188,3667.3,3667.2,0.05759467]
[1736136274882,1.3009947,3667.3,3666.8,0.00180154]
[1736136275123,0.8188,3667.3,3666.9,0.05780106]
[1736136275481,0.8188,3667.3,3666.8,0.55180154]
[1736136275779,1.7157693,3667.1,3666.9,0.05780106]
[1736136275993,1.7157693,3667.1,3666.8,0.55180154]
[1736136276319,1.7157693,3667.1,3666.9,0.05780106]
[1736136276821,1.7157693,3667.1,3667.0,0.05777182]
[1736136276981,1.7157693,3667.1,3666.8,0.55180154]
[1736136277183,3.50801533,3667.0,3666.9,0.05780106]
[1736136277417,3.50801533,3667.0,3666.8,0.55180154]
[1736136277620,3.50801533,3667.0,3666.9,0.05780106]
[1736136277916,3.50801533,3667.0,3666.8,0.00180154]
[1736136278121,3.50801533,3667.0,3666.9,0.05780106]
[1736136278483,1.14363533,3667.0,3666.8,0.00180154]
[1736136278683,0.7957,3666.9,3666.8,0.00180154]
[1736136279691,1.93933533,3666.9,3666.8,0.00180154]
[1736136281430,3.15979385,3666.9,3666.8,0.00180154]
[1736136284221,3.15979385,3666.9,3666.8,2.45625154]
[1736136285405,1.741452,3666.9,3666.8,2.45625154]
[1736136286393,0.7957,3666.9,3666.8,2.45625154]
[1736136286593,0.7957,3666.9,3666.8,0.00180154]
[1736136287927,1.741452,3666.9,3666.8,0.00180154]
[1736136289232,3.15985881,3666.9,3666.8,0.00180154]
[1736136289533,3.15985881,3666.9,3666.8,0.05984642]
[1736136289725,3.15985881,3666.9,3666.8,0.00180154]
[1736136289933,3.15985881,3666.9,3666.8,0.05984642]
[1736136290234,3.15985881,3666.9,3666.8,35.05984642]
[1736136291337,2.36415881,3666.9,3666.8,40.78187234]
[1736136292307,0.945752,3666.9,3666.8,40.78187234]
[1736136293732,2.08938733,3667.1,3666.8,38.32742234]
[1736136293936,2.08938733,3667.1,3666.9,2.45438]
[1736136294236,2.08938733,3667.1,3667.0,0.05798641]
[1736136295234,1.14363533,3667.1,3667.0,0.05798641]
[1736136296541,2.08938733,3667.1,3667.0,0.05798641]
[1736136297233,2.08938733,3667.1,3667.0,35.05798641]
[1736136300951,2.36440641,3667.1,3667.0,35.05798641]
[1736136302049,4.08017571,3667.1,3667.0,35.05798641]
[1736136303214,4.08017571,3667.1,3667.0,0.05798641]
[1736136303415,2.36440641,3667.1,3666.8,3.00623154]
[1736136303755,2.36440641,3667.1,3666.9,0.05791061]
[1736136304067,2.36440641,3667.1,3666.8,3.00623154]
[1736136304257,2.36440641,3667.1,3666.9,35.05791061]
[1736136304450,2.36440641,3667.1,3667.0,3.00432]
[1736136304651,2.36440641,3667.1,3667.0,3.06220137]
[1736136305026,1.41865441,3667.1,3667.0,38.06220137]
[1736136306344,1.14432095,3667.3,3667.0,35.60788137]
[1736136306530,1.14432095,3667.3,3667.2,0.55]
[1736136306729,1.14432095,3667.3,3667.2,3.00418]
[1736136306955,1.14432095,3667.3,3667.2,3.4941029]
[1736136307152,1.14432095,3667.3,3667.2,41.4941029]
[1736136307378,1.00150574,3667.4,3667.3,2.45412]
[1736136307580,5.04e-06,3667.5,3667.4,6.43615]
[1736136307871,3.48e-06,3667.8,3667.7,6.43595]
[1736136308064,3.48e-06,3667.8,3667.7,6.49344873]
[1736136309566,3.48e-06,3667.8,3667.7,9.10618526]
[1736136309737,2.85741972,3669.3,3668.6,2.88535]
[1736136310121,2.85741972,3669.3,3668.7,35.05671832]
[1736136310786,2.61273653,3668.8,3668.7,0.05671832]
[1736136311092,2.61273653,3668.8,3667.7,1.13608527]
[1736136311250,0.8239,3668.7,3667.8,0.05623749]
[1736136311571,0.58896865,3668.6,3667.8,0.05623749]
[1736136312675,0.8239,3668.5,3667.5,0.55]
[1736136312845,0.8239,3668.5,3667.7,0.55]
[1736136313055,0.8239,3668.4,3667.8,0.05436676]
[1736136313237,0.8239,3668.4,3667.3,3.0]
[1736136313438,0.8232,3668.2,3667.4,0.05448367]
[1736136314377,0.8232,3668.2,3667.2,35.0]
[1736136314579,0.8232,3668.2,3667.5,0.05445444]
[1736136314765,0.8232,3668.2,3667.2,35.0]
[1736136314964,0.8232,3668.2,3667.6,0.05442521]
[1736136315168,0.44775914,3668.1,3667.2,35.0]
[1736136315638,0.44775914,3668.1,3667.3,0.0545129]
[1736136316551,0.8232,3668.2,3667.3,0.0545129]
[1736136317378,0.8232,3668.2,3667.4,0.55]
[1736136317542,0.8232,3668.2,3667.5,0.4321]
[1736136317741,0.8232,3668.2,3667.6,0.55]
[1736136318044,0.8232,3668.2,3667.7,0.05482943]
[1736136318438,1.30501609,3668.2,3667.7,0.05482943]
[1736136318669,1.30501609,3668.2,3667.5,0.55]
[1736136318938,1.30501609,3668.2,3667.8,35.0]
[1736136319367,1.30501609,3668.2,3667.9,0.05472991]
[1736136319576,0.8232,3668.2,3667.9,0.05472991]
[1736136321402,0.8232,3668.2,3667.6,35.0]
[1736136321764,0.8232,3668.2,3667.7,0.05478836]
[1736136322383,0.8232,3668.2,3667.8,35.0]
[1736136322701,0.8232,3668.2,3667.8,35.0551652]
[1736136322996,0.44179475,3668.1,3667.8,35.0551652]
[1736136324655,0.8033,3668.0,3667.8,35.0551652]
[1736136325516,0.8033,3668.0,3667.8,0.0551652]
[1736136325697,0.8033,3668.0,3667.2,0.55]
[1736136325990,0.8033,3668.0,3667.3,35.0]
[1736136326191,0.8033,3668.0,3667.3,35.05534785]
[1736136326485,0.8033,3668.0,3667.3,37.77292377]
[1736136329722,0.8033,3668.0,3667.3,40.22702377]
[1736136330122,0.8033,3668.0,3667.4,2.45402]
[1736136330356,0.8033,3668.0,3667.5,0.05528939]
[1736136330642,0.8033,3668.0,3667.5,2.50924939]
[1736136330822,0.8033,3668.0,3667.6,35.0]
[1736136331023,0.8033,3668.0,3667.7,0.05523094]
[1736136332516,0.8033,3668.0,3667.7,0.12095476]
[1736136334438,0.8033,3668.0,3667.7,0.06572382]
[1736136334644,0.8033,3668.0,3667.8,35.12104147]
[1736136337745,0.8033,3668.0,3667.8,0.12104147]
[1736136337954,0.8033,3668.0,3667.4,2.45402]
[1736136338122,0.8033,3668.0,3667.9,0.12101046]
[1736136338322,0.8033,3668.0,3667.9,35.0]
[1736136338536,0.8033,3668.0,3667.9,35.12101046]
[1736136339323,0.8033,3668.0,3667.9,0.12101046]
[1736136339523,0.8033,3668.0,3667.4,2.45402]
[1736136339759,0.8033,3668.0,3667.9,0.12101046]
[1736136339941,0.8033,3668.0,3667.5,35.0]
[1736136340146,0.8033,3668.0,3667.9,0.12101046]
[1736136340343,0.8033,3668.0,3667.5,35.0]
[1736136340550,0.8033,3668.0,3667.9,0.12101046]
[1736136340750,0.8033,3668.0,3667.5,35.0]
[1736136340945,0.8033,3668.0,3667.9,0.12101046]
[1736136341465,0.99775875,3668.0,3667.5,35.0]
[1736136341756,0.8033,3668.0,3667.9,0.12101046]
[1736136341958,0.8033,3668.0,3667.5,35.0]
[1736136342122,0.8033,3668.0,3667.9,0.12101046]
[1736136342329,0.8033,3668.0,3667.5,35.0]
[1736136342529,0.8033,3668.0,3667.9,0.12106979]
[1736136342730,1.41431736,3668.0,3667.5,35.0]
[1736136342963,1.41431736,3668.0,3667.9,0.12106979]
[1736136343466,2.55560483,3668.0,3667.5,35.0]
[1736136343627,1.94458747,3668.0,3667.9,0.12106979]
[1736136343828,1.94458747,3668.0,3667.5,35.0]
[1736136344065,1.91759618,3668.0,3667.6,0.12116284]
[1736136344954,7.32099621,3667.9,3667.6,0.12116284]
[1736136345262,7.32099621,3667.9,3666.9,0.55]
[1736136345471,2.61273653,3667.6,3666.9,0.55]
[1736136346369,2.61273653,3667.6,3666.8,0.55180154]
[1736136346864,2.61273653,3667.6,3666.8,0.00180154]
[1736136347027,0.7673,3667.5,3666.8,0.00180154]
[1736136347226,1.14281632,3667.4,3666.8,0.00180154]
[1736136348233,2.4656495,3667.4,3666.8,0.00180154]
[1736136348436,2.49554013,3667.3,3666.8,0.00180154]
[1736136349455,3.397356,3667.3,3666.8,0.00180154]
[1736136349750,3.397356,3667.3,3666.9,0.1214576]
[1736136349956,3.397356,3667.3,3666.8,0.00180154]
[1736136350158,3.397356,3667.3,3667.0,0.12142657]
[1736136350357,3.397356,3667.3,3666.9,0.1214576]
[1736136350570,3.397356,3667.3,3667.1,0.12139555]
[1736136350732,3.397356,3667.3,3667.0,0.12142657]
[1736136350936,3.397356,3667.3,3666.6,37.45458]
[1736136351129,1.14281632,3667.3,3667.1,0.12164664]
[1736136351351,1.14281632,3667.3,3666.6,40.17215592]
[1736136351569,1.14281632,3667.3,3667.2,0.12161561]
[1736136351773,1.14281632,3667.3,3666.6,37.45458]
[1736136351933,1.14281632,3667.3,3667.2,0.12159735]
[1736136352267,2.25453968,3667.4,3667.2,0.12159735]
[1736136352453,2.25453968,3667.4,3666.6,37.45458]
[1736136352655,2.25453968,3667.4,3666.6,40.17215592]
[1736136352859,2.25453968,3667.4,3666.7,0.12175249]
[1736136353857,1.14281632,3667.3,3666.7,0.12175249]
[1736136354934,1.14281632,3667.3,3666.8,35.0]
[1736136355195,1.14281632,3667.3,3666.8,35.12172146]
[1736136356275,2.12375213,3667.2,3666.8,35.12172146]
[1736136357767,0.90181587,3667.1,3666.8,35.12172146]
[1736136357934,0.8091,3667.0,3666.8,35.12172146]
[1736136358134,0.8091,3667.0,3666.8,0.12172146]
[1736136358347,0.8091,3667.0,3665.9,1.13608527]
[1736136358348,0.76,3666.9,3665.9,3.59107527]
[1736136358674,0.76,3666.9,3666.1,35.0]
[1736136359452,4.74115743,3666.9,3666.1,35.0]
[1736136360051,0.8276,3666.8,3666.1,35.0]
[1736136360962,4.23744276,3666.8,3666.1,35.0]
[1736136361676,4.23744276,3666.8,3666.2,0.55]
[1736136361881,4.23744276,3666.8,3666.3,2.45479]
[1736136362181,2.26693295,3666.7,3666.3,2.45479]
[1736136362395,2.26693295,3666.7,3666.4,35.0]
[1736136363483,0.8276,3666.8,3666.4,35.0]
[1736136363710,1.14290981,3666.9,3666.8,2.45445]
[1736136363853,1.14290981,3666.9,3666.8,2.91355]
[1736136364548,1.14290981,3666.9,3666.8,3.58580105]
[1736136364748,0.92507441,3667.2,3667.1,3.00425]
[1736136364989,0.92507441,3667.2,3667.1,3.62408376]
[1736136365178,0.92507441,3667.2,3667.1,3.74624173]
[1736136365778,0.92507441,3667.2,3667.1,1.29199173]
[1736136365951,2.06798422,3667.7,3667.1,0.67215797]
[1736136366889,2.06798422,3667.7,3667.1,0.12215797]
[1736136367192,0.7986,3667.5,3666.7,35.0]
[1736136367362,2.61273653,3667.4,3667.2,0.12192151]
[1736136367695,0.7986,3667.3,3666.3,2.91568154]
[1736136367886,0.7986,3667.3,3666.3,38.32585822]
[1736136368691,1.14290981,3667.1,3666.3,35.87107822]
[1736136368895,0.8074,3667.0,3666.3,35.00180154]
[1736136369552,4.30707498,3667.1,3666.3,35.00180154]
[1736136369757,0.8072,3666.7,3666.3,0.00180154]
[1736136370771,1.14290981,3666.5,3666.3,0.00180154]
[1736136372099,4.02690797,3666.6,3666.3,0.00180154]
[1736136372100,0.92507441,3666.6,3666.3,0.00180154]
[1736136373575,0.45894087,3666.6,3666.3,0.00180154]
[1736136373797,0.8072,3666.7,3666.3,0.00180154]
[1736136374666,0.92507441,3666.5,3666.3,0.00180154]
[1736136375602,0.92507441,3666.6,3666.3,0.00180154]
[1736136378604,0.92146063,3666.6,3666.3,0.00180154]
[1736136379290,0.8192,3666.5,3666.3,0.00180154]
[1736136379503,0.28835704,3666.4,3666.3,0.00180154]
[1736136383471,1.14290981,3666.6,3666.3,0.00180154]
[1736136383812,1.14290981,3666.6,3666.4,0.12295066]
[1736136384171,1.14290981,3666.6,3666.3,0.00180154]
[1736136384705,1.14290981,3666.7,3666.3,0.00180154]
[1736136385976,2.52996776,3666.6,3666.3,0.00180154]
[1736136386174,0.50082922,3666.5,3666.3,0.00180154]
[1736136386714,0.77,3666.4,3666.3,0.00180154]
[1736136389169,3.22472,3666.4,3666.3,0.00180154]
[1736136389607,5.75540214,3666.4,3666.3,0.00180154]
[1736136390572,6.30034341,3666.4,3666.3,0.00180154]
[1736136390770,7.41315677,3666.4,3666.3,0.00180154]
[1736136391112,10.40374005,3666.4,3666.3,0.00180154]
[1736136393930,8.12090523,3666.4,3666.3,0.00180154]
[1736136396523,3.24002,3666.1,3666.0,0.05]
[1736136396747,5.85275653,3666.1,3666.0,0.05]
[1736136396927,7.18502271,3666.1,3666.0,0.05]
[1736136398330,12.70797447,3666.1,3666.0,0.05]
[1736136399629,13.63294796,3666.1,3666.0,0.05]
[1736136402340,11.3484268,3666.1,3666.0,0.05]
[1736136404005,6.28077027,3666.1,3666.0,0.05]
[1736136404346,4.16340409,3666.1,3666.0,0.05]
[1736136404512,7.58584062,3666.1,3666.0,0.05]
[1736136404720,10.04076062,3666.1,3666.0,0.05]
[1736136405461,7.2898913,3666.1,3666.0,0.05]
[1736136405625,7.44770783,3666.1,3666.0,0.05]
[1736136405802,8.87231031,3666.1,3666.0,0.05]
[1736136406205,11.32723031,3666.1,3666.0,0.05]
[1736136406509,11.89922599,3666.1,3666.0,0.05]
[1736136406730,0.7548,3665.5,3664.7,0.00716985]
[1736136407961,3.21018,3665.5,3664.7,0.00716985]
[1736136408245,3.45445316,3665.4,3664.7,0.00716985]
[1736136409544,2.06668083,3665.4,3664.7,0.00716985]
[1736136411027,0.92497349,3665.4,3664.7,0.00716985]
[1736136412108,0.92497349,3665.4,3664.9,0.4591]
[1736136412641,0.92169035,3665.4,3665.0,0.1243221]
[1736136413610,1.89650734,3665.5,3665.0,0.1243221]
[1736136414338,1.14170734,3665.5,3665.0,0.1243221]
[1736136414907,2.52908681,3665.4,3665.0,0.1243221]
[1736136415850,2.52908681,3665.4,3665.1,0.55]
[1736136416023,1.14170734,3665.6,3665.3,0.55]
[1736136416222,1.14170734,3665.6,3665.4,0.12424357]
[1736136416423,1.14170734,3665.6,3665.5,1.0091]
[1736136416629,1.14170734,3665.6,3665.5,3.58863252]
[1736136416813,1.14170734,3665.6,3665.5,1.75344943]
[1736136417335,2.52907585,3666.0,3665.5,1.13331252]
[1736136418932,1.71256102,3666.2,3665.5,1.13331252]
[1736136418933,1.14170734,3666.1,3665.5,1.13331252]
[1736136420139,1.14170734,3666.1,3665.5,0.58331252]
[1736136420354,0.767,3666.0,3665.5,0.12421252]
[1736136420650,0.767,3666.0,3665.2,0.4591]
[1736136420815,0.767,3666.0,3665.2,0.750567]
[1736136421023,0.767,3666.0,3665.3,0.12402328]
[1736136421619,1.90870734,3666.0,3665.3,0.12402328]
[1736136422769,1.38795536,3665.9,3665.3,0.12402328]
[1736136422971,1.38795536,3665.9,3665.4,0.55]
[1736136423176,1.38795536,3665.9,3665.4,0.90886433]
[1736136424175,1.14170734,3666.0,3665.5,35.0]
[1736136424474,1.14170734,3666.0,3665.9,3.46415]
[1736136424971,1.14170734,3666.0,3665.9,3.58779501]
[1736136425170,1.14170734,3666.0,3665.9,38.58779501]
[1736136425371,1.14170734,3666.0,3665.9,41.30537093]
[1736136425677,1.14170734,3666.5,3665.9,38.30032093]
[1736136425873,1.14170734,3666.5,3665.9,35.58274501]
[1736136427062,1.14170734,3666.4,3665.9,35.58274501]
[1736136427261,1.14170734,3666.4,3666.1,0.55]
[1736136427461,1.14170734,3666.4,3666.3,3.46389]
[1736136427851,1.14170734,3666.4,3666.3,3.58717782]
[1736136428051,1.14170734,3666.4,3666.3,4.20716926]
[1736136428275,5.74063282,3667.2,3666.3,4.20716926]
[1736136428276,1.14170734,3667.1,3666.5,2.45465]
[1736136428480,1.14170734,3667.1,3666.6,0.4591]
[1736136428681,1.14170734,3667.1,3666.6,0.5822947]
[1736136428977,1.14170734,3667.1,3666.7,35.0]
[1736136429479,1.14170734,3667.2,3666.7,35.12316367]
[1736136430543,1.14170734,3667.1,3666.7,35.12316367]
[1736136431046,1.14170734,3667.1,3666.7,0.12316367]
[1736136431248,0.28542684,3667.0,3666.7,0.12316367]
[1736136431653,0.28542684,3667.0,3666.3,0.4591]
[1736136431983,2.73975684,3667.0,3666.4,0.12325678]
[1736136432191,0.7683,3666.9,3666.4,0.12325678]
[1736136432348,2.4546,3666.6,3665.6,0.4591]
[1736136432658,1.27503365,3666.5,3665.7,0.12347409]
[1736136433862,3.4545294,3666.4,3665.7,0.12347409]
[1736136434189,3.4545294,3666.4,3665.8,35.0]
[1736136434683,3.4545294,3666.4,3665.9,0.67341199]
[1736136434893,3.4545294,3666.4,3666.1,0.55]
[1736136435249,3.4545294,3666.4,3666.2,35.12312239]
[1736136435448,1.14170734,3666.6,3666.2,35.12312239]
[1736136437957,1.3869312,3666.5,3666.2,35.12312239]
[1736136438783,1.3869312,3666.5,3666.2,0.12312239]
[1736136439099,3.8415812,3666.5,3665.3,2.46421792]
[1736136439300,3.8415812,3666.5,3665.4,35.0]
[1736136439500,4.52095937,3666.5,3665.5,0.55]
[1736136439797,5.22114141,3666.5,3665.5,0.55]
[1736136440002,2.76649141,3666.5,3665.7,0.4591]
[1736136440172,2.76649141,3666.5,3665.8,35.0]
[1736136440494,2.06630937,3666.5,3665.9,0.55]
[1736136440869,3.45334118,3666.4,3666.0,0.12318448]
[1736136441065,3.45334118,3666.4,3666.1,35.0]
[1736136441394,3.45334118,3666.4,3666.2,0.12312239]
[1736136441594,4.27521352,3666.4,3666.2,0.12312239]
[1736136441789,4.27521352,3666.4,3665.7,0.4591]
[1736136441995,4.27521352,3666.4,3665.8,35.12324657]
[1736136442288,0.82187234,3666.4,3665.8,35.12324657]
[1736136443395,1.14170734,3666.3,3665.8,35.12324657]
[1736136443558,1.92407861,3666.3,3665.8,35.12324657]
[1736136444780,0.92460203,3666.2,3665.8,35.12324657]
[1736136445785,0.92460203,3666.2,3665.8,0.12324657]
[1736136446063,0.92460203,3666.2,3665.5,0.4591]
[1736136446269,0.92460203,3666.2,3665.9,35.0]
[1736136446491,1.46291343,3666.2,3665.9,35.0]
[1736136446694,1.46291343,3666.2,3666.0,0.12325757]
[1736136447004,2.85005937,3666.2,3666.0,0.12325757]
[1736136447199,2.85005937,3666.2,3665.5,0.4591]
[1736136447403,0.824,3666.1,3665.6,35.12338176]
[1736136448476,2.45506,3665.9,3665.6,0.12338176]
[1736136448669,0.824,3665.8,3665.6,0.12338176]
[1736136448868,3.27913,3665.8,3665.4,35.0]
[1736136449104,3.27913,3665.8,3665.5,0.12348134]
[1736136449280,0.824,3665.8,3665.5,0.12348134]
[1736136449480,4.70984509,3665.8,3665.5,0.12348134]
[1736136449885,0.797,3665.7,3665.5,0.12348134]
[1736136450071,0.797,3665.7,3665.3,0.00876792]
[1736136450275,0.797,3665.7,3665.4,35.0]
[1736136450578,0.797,3665.7,3665.5,0.12348134]
[1736136450773,0.797,3665.7,3665.3,0.00876792]
[1736136450774,0.767305,3665.6,3665.3,0.00876792]
[1736136450981,4.22135352,3665.6,3665.3,0.00876792]
[1736136451180,4.22135352,3665.6,3665.4,0.1235124]
[1736136451406,3.45404852,3665.6,3665.4,0.1235124]
[1736136452171,0.92493647,3665.5,3665.4,0.1235124]
[1736136453413,0.92493647,3665.6,3665.4,0.1235124]
[1736136453822,0.91776662,3665.6,3665.3,0.00876792]
[1736136454024,0.91776662,3665.6,3665.4,0.1235124]
[1736136454212,0.91776662,3665.6,3665.5,35.0]
[1736136454400,0.91776662,3665.6,3665.5,35.12348134]
[1736136454889,1.14170734,3665.7,3665.5,35.12348134]
[1736136456011,2.52546102,3665.9,3665.5,35.12348134]
[1736136456012,2.52917983,3665.8,3665.5,35.12348134]
[1736136456833,3.65043463,3665.8,3665.5,35.12348134]
[1736136457201,2.52917983,3665.8,3665.5,35.12348134]
[1736136457520,1.14170734,3665.7,3665.5,35.12348134]
[1736136458717,1.14170734,3665.6,3665.5,35.12348134]
[1736136459202,1.14170734,3665.6,3665.5,0.12348134]
[1736136459399,1.14170734,3665.6,3665.0,0.4591]
[1736136459603,1.14170734,3665.6,3665.1,35.12360557]
[1736136460794,0.8223,3665.5,3665.1,35.12360557]
[1736136461533,1.96400734,3665.5,3665.1,35.12360557]
[1736136462401,1.38747249,3665.4,3665.1,35.12360557]
[1736136464043,1.38747249,3665.4,3665.1,38.30028149]
[1736136465418,1.71256102,3665.7,3665.1,38.30028149]
[1736136465419,1.14170734,3665.7,3665.1,38.30028149]
[1736136465913,1.14170734,3665.7,3665.1,40.91301802]
[1736136466100,1.14170734,3665.7,3665.4,3.00535]
[1736136466302,1.14170734,3665.7,3665.3,0.4591]
[1736136466521,1.14170734,3665.7,3665.5,0.12407541]
[1736136466841,1.14170734,3665.7,3665.6,0.12404436]
[1736136467005,2.52942376,3665.7,3665.4,2.71757592]
[1736136467205,2.52942376,3665.7,3665.5,0.12407541]
[1736136467418,0.8249,3665.6,3665.5,0.12407541]
[1736136467622,2.52942376,3665.7,3664.5,0.4591]
[1736136467936,2.52942376,3665.7,3665.0,0.4591]
[1736136468314,2.52942376,3665.7,3665.1,0.12419964]
[1736136468519,1.14170734,3665.8,3665.1,0.12419964]
[1736136468719,1.14170734,3665.8,3665.1,0.4281026]
[1736136469922,1.14170734,3665.7,3665.1,0.4281026]
[1736136470618,1.14170734,3665.7,3665.2,0.55]
[1736136470931,1.14170734,3665.6,3665.3,0.12413752]
[1736136472243,2.52942376,3665.8,3665.3,0.12413752]
[1736136473348,1.14170734,3665.9,3665.3,0.12413752]
[1736136473525,1.64839582,3665.9,3665.3,0.12413752]
[1736136473848,1.64839582,3665.9,3665.0,0.4591]
[1736136474055,1.64839582,3665.9,3665.1,0.12408081]
[1736136474947,1.14170734,3665.7,3665.1,0.12408081]
[1736136475934,1.14170734,3665.8,3665.1,0.12408081]
[1736136477263,1.14170734,3665.7,3665.1,0.12408081]
[1736136478446,1.14170734,3665.6,3665.1,0.12408081]
[1736136478652,1.14170734,3665.6,3665.1,0.42797089]
[1736136479819,1.14170734,3665.7,3665.1,0.42797089]
[1736136480153,1.14170734,3665.7,3665.0,2.88014888]
[1736136480346,1.14170734,3665.7,3665.2,0.11991372]
[1736136480530,1.14170734,3665.7,3665.1,0.11994478]
[1736136480848,1.14170734,3665.7,3665.2,0.11991372]
[1736136481147,1.14170734,3665.7,3665.0,2.88014888]
[1736136481347,1.14170734,3665.6,3665.3,0.11988266]
[1736136481553,1.14170734,3665.6,3665.0,2.88014888]
[1736136481917,1.14170734,3665.6,3665.1,0.11994478]
[1736136482346,1.14170734,3665.6,3665.1,2.57552478]
[1736136482548,1.14170734,3665.6,3665.3,2.45545]
[1736136482929,1.14170734,3665.6,3665.4,0.11987904]
[1736136483255,1.14170734,3665.6,3665.5,0.4245]
[1736136483480,1.14170734,3665.6,3665.5,0.54434798]
[1736136483682,1.14170734,3665.7,3665.5,0.54434798]
[1736136483823,1.14170734,3665.7,3665.5,0.4245]
[1736136485967,1.14170734,3665.7,3665.6,0.11970268]
[1736136486367,1.14170734,3665.7,3665.5,2.87982]
[1736136486542,1.14170734,3665.7,3665.6,2.57495268]
[1736136486751,1.14170734,3665.7,3665.6,2.87489795]
[1736136486932,1.14170734,3665.7,3665.6,2.57495268]
[1736136487936,1.14170734,3666.0,3665.6,2.57495268]
[1736136488674,1.14170734,3666.0,3665.7,2.45514]
[1736136488968,1.14170734,3666.0,3665.8,0.54414058]
[1736136489540,1.14170734,3666.1,3665.8,0.54414058]
[1736136490745,1.14170734,3666.1,3665.9,0.55]
[1736136490950,1.14170734,3666.1,3665.9,3.00505]
[1736136491352,1.14170734,3666.1,3666.0,0.11935917]
[1736136491859,1.14170734,3666.2,3666.0,0.11935917]
[1736136493881,2.67157473,3666.2,3666.0,0.11935917]
[1736136494042,2.67157473,3666.2,3665.6,0.4245]
[1736136494242,2.67157473,3666.2,3665.7,0.11943404]
[1736136495970,3.45459175,3666.1,3665.7,0.11943404]
[1736136496841,3.45459175,3666.1,3665.1,2.45558]
[1736136496842,0.7847,3666.0,3665.1,2.45558]
[1736136497167,0.7847,3665.9,3665.2,0.11939281]
[1736136497678,0.7847,3665.9,3665.3,0.11936175]
[1736136497877,0.7847,3665.9,3665.0,0.55]
[1736136498035,0.73639838,3665.8,3665.1,0.11942387]
[1736136498494,1.14170734,3665.5,3665.1,0.11942387]
[1736136500657,0.8237,3665.4,3665.1,0.11942387]
[1736136502297,0.8237,3665.4,3664.8,2.45579]
[1736136502497,0.8237,3665.4,3664.9,0.11948599]
[1736136504100,1.14170734,3665.5,3664.9,0.11948599]
[1736136506189,3.47778142,3665.5,3664.9,0.11948599]
[1736136506364,0.59987424,3665.4,3664.9,0.11948599]
[1736136507569,1.70712963,3665.3,3664.9,0.11948599]
[1736136507875,1.70712963,3665.3,3665.0,0.1197337]
[1736136508076,1.70712963,3665.3,3664.6,2.88042]
[1736136508276,1.70712963,3665.3,3664.7,0.11982689]
[1736136508879,0.7727,3665.3,3664.7,0.11982689]
[1736136509425,0.7727,3665.3,3664.8,37.75577469]
[1736136509899,0.7727,3665.3,3664.9,0.11976476]
[1736136510276,0.7727,3665.3,3665.0,0.55]
[1736136510493,1.14170734,3665.4,3665.1,0.11970263]
[1736136512686,1.14170734,3665.5,3665.1,0.11970263]
[1736136513505,1.14170734,3665.5,3665.2,35.0]
[1736136513674,1.14170734,3665.5,3665.3,0.11964052]
[1736136513871,1.14170734,3665.4,3665.3,0.11964052]
[1736136514085,1.14170734,3665.4,3665.0,3.00564]
[1736136514285,1.14170734,3665.4,3665.1,0.11970263]
[1736136514606,1.14170734,3665.4,3665.2,35.0]
[1736136514970,1.14170734,3665.4,3665.3,0.11964052]
[1736136516378,1.14170734,3665.4,3665.3,35.0]
[1736136516573,1.14170734,3665.4,3665.3,35.11964052]
[1736136516889,3.47816187,3665.5,3665.3,35.11964052]
[1736136518706,1.14170734,3665.6,3665.3,35.11964052]
[1736136519074,1.14170734,3665.6,3665.3,40.29265644]
[1736136519276,1.14170734,3665.6,3665.5,3.00532]
[1736136519478,1.14170734,3665.6,3665.5,3.5496177]
[1736136520115,1.14170734,3665.6,3665.5,38.5496177]
[1736136521700,1.14170734,3665.8,3665.6,0.55]
[1736136521878,1.14170734,3665.8,3665.7,0.11973559]
[1736136522683,1.95860734,3665.8,3665.7,0.11973559]
[1736136522877,1.60457004,3665.8,3665.0,2.45564]
[1736136523085,0.8169,3665.8,3665.1,0.66992193]
[1736136524215,0.8169,3665.8,3665.1,0.11992193]
[1736136524401,3.47816187,3665.7,3665.1,0.11992193]
[1736136524794,3.47816187,3665.7,3665.1,35.11992193]
[1736136524978,3.47816187,3665.7,3665.1,37.57546193]
[1736136525821,3.47816187,3665.7,3665.1,35.11992193]
[1736136527279,4.30737628,3665.7,3665.1,35.11992193]